bitfinex/quotes_BTCUSD_20220212
["timestamp","ask_amount","ask_price","bid_price","bid_amount"]
[1644680760759,0.2385062,42145.0,42137.0,0.00044062]
[1644680761060,0.00073706,42140.0,42137.0,0.00044062]
[1644680761460,0.00073706,42140.0,42139.0,0.00020129]
[1644680762060,0.00060104,42140.0,42139.0,0.00020129]
[1644680762661,0.06760419,42140.0,42132.0,0.03]
[1644680762902,0.06760419,42140.0,42137.0,0.00044011]
[1644680763497,0.00060104,42140.0,42137.0,0.00044011]
[1644680763698,0.00060104,42140.0,42132.0,0.03]
[1644680764099,0.00060104,42140.0,42136.0,0.00044011]
[1644680764899,0.00060104,42140.0,42132.0,0.03]
[1644680765103,0.00060104,42140.0,42136.0,0.00044012]
[1644680765302,0.23460853,42139.0,42136.0,0.00044012]
[1644680766104,0.23460853,42139.0,42132.0,0.03]
[1644680766303,0.06741795,42137.0,42132.0,0.03]
[1644680766749,0.00138256,42140.0,42139.0,0.23686283]
[1644680767249,0.06360997,42142.0,42139.0,0.23686283]
[1644680767652,0.06330038,42142.0,42139.0,0.23686283]
[1644680769449,0.1139,42149.0,42139.0,0.23686283]
[1644680769649,0.059348,42150.0,42139.0,0.23686283]
[1644680770050,0.059348,42150.0,42142.0,0.00043973]
[1644680770253,0.25143605,42145.0,42142.0,0.00043973]
[1644680770509,0.07677225,42144.0,42142.0,0.00043973]
[1644680770907,0.07677225,42144.0,42140.0,0.00206854]
[1644680771104,0.07677225,42144.0,42141.0,0.00043974]
[1644680771506,0.715047,42153.0,42141.0,0.00043974]
[1644680771507,0.608,42153.0,42141.0,0.00043974]
[1644680771706,0.3154,42153.0,42141.0,0.00043974]
[1644680771906,0.2154,42153.0,42141.0,0.00043974]
[1644680772105,0.2,42153.0,42140.0,0.28083434]
[1644680772305,0.9472,42155.0,42144.0,0.00043973]
[1644680772508,0.23509518,42152.0,42144.0,0.00043973]
[1644680772706,0.06524292,42151.0,42144.0,0.20088843]
[1644680773306,0.06524292,42151.0,42144.0,0.2004487]
[1644680773510,0.5782,42155.0,42144.0,0.20088843]
[1644680773908,0.00027779,42159.0,42145.0,0.31178571]
[1644680774149,0.00027779,42159.0,42145.0,0.33671052]
[1644680774350,0.00043957,42160.0,42145.0,0.33671052]
[1644680774552,0.08088919,42157.0,42145.0,0.48671052]
[1644680774750,0.00027779,42160.0,42145.0,0.53671052]
[1644680774953,0.00027779,42159.0,42146.0,0.0477]
[1644680775155,0.00043959,42160.0,42146.0,0.1115]
[1644680775352,0.00027779,42159.0,42146.0,0.1115]
[1644680775554,0.00043959,42160.0,42146.0,0.1115]
[1644680775852,0.06650354,42154.0,42146.0,0.1115]
[1644680776254,0.00043959,42160.0,42146.0,0.1115]
[1644680776452,0.00089825,42154.0,42147.0,0.05]
[1644680776653,0.00089825,42154.0,42148.0,0.34259765]
[1644680776854,0.00089825,42154.0,42149.0,0.0477]
[1644680778603,0.00089825,42154.0,42150.0,0.23708562]
[1644680778802,0.00089825,42154.0,42152.0,0.08045558]
[1644680779003,0.00089825,42154.0,42153.0,0.34723646]
[1644680779403,0.00089825,42154.0,42153.0,0.44723646]
[1644680781207,0.00153319,42160.0,42153.0,0.44723646]
[1644680781405,0.0012554,42160.0,42153.0,0.44723646]
[1644680781850,0.0008158,42160.0,42153.0,0.44723646]
[1644680782050,0.00125542,42160.0,42153.0,0.44723646]
[1644680782251,0.00125542,42160.0,42153.0,0.0477]
[1644680783051,0.0008158,42160.0,42153.0,0.0477]
[1644680783253,0.00125542,42160.0,42153.0,0.0477]
[1644680784051,0.00125542,42160.0,42150.0,0.00206804]
[1644680784251,0.0008158,42160.0,42150.0,0.00206804]
[1644680784451,0.00125542,42160.0,42150.0,0.00206804]
[1644680784651,0.00125542,42160.0,42151.0,1.77449045]
[1644680784851,0.00125542,42160.0,42150.0,0.00206804]
[1644680784852,0.00125542,42160.0,42157.0,0.20476335]
[1644680785406,0.0008158,42160.0,42157.0,0.20476335]
[1644680786400,0.00102768,42160.0,42157.0,0.20476335]
[1644680789351,0.00102768,42160.0,42157.0,0.20468037]
[1644680791451,0.00102768,42160.0,42158.0,0.00200505]
[1644680796501,0.00092912,42160.0,42158.0,0.00200505]
[1644680796748,0.00027779,42167.0,42161.0,0.00273747]
[1644680797348,0.14524999,42168.0,42161.0,0.00273747]
[1644680797549,0.00027779,42167.0,42161.0,0.00273747]
[1644680797750,0.22533667,42167.0,42161.0,0.00273747]
[1644680797952,0.22561446,42167.0,42161.0,0.00273747]
[1644680798351,0.00027779,42167.0,42161.0,0.00273747]
[1644680798551,0.14524999,42168.0,42161.0,0.00273747]
[1644680798752,0.00027779,42167.0,42161.0,0.00273747]
[1644680798954,0.14524999,42168.0,42161.0,0.00273747]
[1644680799154,0.00027779,42167.0,42161.0,0.00273747]
[1644680799455,0.07581828,42168.0,42162.0,0.0477]
[1644680799658,0.00027779,42167.0,42162.0,0.0477]
[1644680800257,0.00043959,42167.0,42164.0,0.23821518]
[1644680800498,0.00043959,42167.0,42165.0,0.0477]
[1644680800999,0.07581828,42168.0,42165.0,0.0477]
[1644680801196,0.07554049,42168.0,42165.0,0.0477]
[1644680801400,0.07577945,42168.0,42165.0,0.0477]
[1644680802398,0.07554049,42168.0,42165.0,0.0477]
[1644680802799,0.07554049,42168.0,42166.0,0.2833136]
[1644680803000,0.07554049,42168.0,42167.0,0.0477]
[1644680803398,0.07554049,42168.0,42167.0,0.33460612]
[1644680803600,0.07554049,42168.0,42167.0,0.57530743]
[1644680803797,0.07554049,42168.0,42167.0,0.67530743]
[1644680804453,0.07554049,42168.0,42167.0,0.38840131]
[1644680804852,0.07554049,42168.0,42167.0,0.1477]
[1644680805253,0.07054049,42168.0,42167.0,0.1477]
[1644680806053,0.07054049,42168.0,42167.0,0.0477]
[1644680806857,0.07054049,42168.0,42167.0,0.08211275]
[1644680807257,0.07054049,42168.0,42167.0,0.18211275]
[1644680807656,0.0111,42169.0,42168.0,0.8]
[1644680807913,0.0111,42169.0,42168.0,0.95381205]
[1644680808307,0.0111,42169.0,42168.0,1.19226747]
[1644680808707,0.0111,42169.0,42168.0,1.14226747]
[1644680810312,0.0111,42169.0,42168.0,0.23615542]
[1644680810511,0.0111,42169.0,42168.0,0.18845542]
[1644680810710,0.0111,42169.0,42166.0,0.00200467]
[1644680811311,0.19660893,42173.0,42167.0,0.00200954]
[1644680811512,0.18815281,42173.0,42167.0,0.00200954]
[1644680811951,0.18815281,42173.0,42168.0,0.08]
[1644680812157,0.00041736,42172.0,42168.0,0.08]
[1644680812752,0.27888523,42172.0,42168.0,0.08]
[1644680813052,0.18815281,42173.0,42168.0,0.08]
[1644680813452,0.00042754,42172.0,42168.0,0.08]
[1644680814255,0.18815281,42173.0,42168.0,0.08]
[1644680814657,0.00042754,42172.0,42168.0,0.08]
[1644680815505,0.18815281,42173.0,42168.0,0.08]
[1644680815705,0.00042754,42172.0,42168.0,0.08]
[1644680816706,0.18815281,42173.0,42169.0,0.00206709]
[1644680817007,0.00040377,42172.0,42169.0,0.08206709]
[1644680817905,0.18815281,42173.0,42169.0,0.08206709]
[1644680818306,0.18855658,42173.0,42169.0,0.08206709]
[1644680819157,0.18815281,42173.0,42169.0,0.08206709]
[1644680819457,0.18855658,42173.0,42169.0,0.08206709]
[1644680820358,0.18815281,42173.0,42169.0,0.08206709]
[1644680820557,0.18856005,42173.0,42169.0,0.08206709]
[1644680821360,0.0477,42172.0,42169.0,0.08206709]
[1644680821957,0.0477,42172.0,42169.0,0.00206709]
[1644680824404,0.05,42170.0,42169.0,0.00206709]
[1644680824604,0.428948,42170.0,42169.0,0.00206709]
[1644680824804,0.528948,42170.0,42169.0,0.00206709]
[1644680825008,0.1977,42170.0,42169.0,0.00206709]
[1644680826105,0.42301928,42170.0,42169.0,0.00206709]
[1644680826307,0.19177128,42170.0,42169.0,0.00206709]
[1644680827556,0.09177128,42170.0,42169.0,0.00206709]
[1644680827755,0.62301928,42170.0,42169.0,0.00206709]
[1644680827955,0.209331,42168.0,42161.0,0.00273747]
[1644680828155,0.209331,42168.0,42157.0,0.00040695]
[1644680828156,0.04407128,42162.0,42157.0,0.00040695]
[1644680828757,0.04407128,42162.0,42147.0,0.26148445]
[1644680828956,0.21208712,42149.0,42147.0,0.26148445]
[1644680829155,0.19280026,42157.0,42156.0,0.23869847]
[1644680829355,0.27031304,42157.0,42156.0,0.23869847]
[1644680830259,0.32031304,42157.0,42156.0,0.23869847]
[1644680830505,0.27031304,42157.0,42156.0,0.23869847]
[1644680831505,0.32031304,42157.0,42156.0,0.23869847]
[1644680831705,0.36801304,42157.0,42156.0,0.23869847]
[1644680831904,0.79926104,42157.0,42156.0,0.23869847]
[1644680832106,0.46801304,42157.0,42156.0,0.23869847]
[1644680832307,0.79926104,42157.0,42156.0,0.23869847]
[1644680832509,1.88785009,42167.0,42156.0,0.23869847]
[1644680832510,0.05934,42160.0,42156.0,0.23869847]
[1644680832707,0.0002379,42163.0,42156.0,0.23869847]
[1644680833505,0.08280894,42161.0,42156.0,0.23869847]
[1644680833707,0.331248,42160.0,42156.0,0.23869847]
[1644680834160,0.08280894,42161.0,42156.0,0.23869847]
[1644680834960,0.08280894,42161.0,42156.0,0.23913768]
[1644680835961,0.00189609,42157.0,42156.0,0.23869847]
[1644680836160,0.00189609,42157.0,42156.0,0.23913768]
[1644680837062,0.00189609,42157.0,42148.0,0.3]
[1644680837261,0.00189609,42157.0,42140.0,0.8527402]
[1644680837262,0.331248,42156.0,42144.0,0.3]
[1644680837462,0.05,42156.0,42144.0,0.00592872]
[1644680837662,0.22610634,42151.0,42144.0,0.00592872]
[1644680837929,0.22610634,42151.0,42141.0,0.53486525]
[1644680838122,0.22610634,42151.0,42141.0,0.51986525]
[1644680838417,0.08477228,42145.0,42141.0,0.51986525]
[1644680838818,0.08477228,42145.0,42141.0,0.21986525]
[1644680839821,0.08477228,42145.0,42141.0,0.22028798]
[1644680840822,0.08477228,42145.0,42141.0,0.21986525]
[1644680841025,0.08477228,42145.0,42141.0,0.22028798]
[1644680841229,0.08477228,42145.0,42141.0,0.00042273]
[1644680841424,0.22610634,42151.0,42145.0,0.16954455]
[1644680842284,0.08869259,42147.0,42146.0,0.00042271]
[1644680842485,0.00091402,42155.0,42146.0,0.00042271]
[1644680842685,0.00091402,42155.0,42152.0,0.00592872]
[1644680843087,0.00091402,42155.0,42150.0,0.0477]
[1644680843486,0.00091402,42155.0,42151.0,0.00042268]
[1644680843487,0.07135473,42154.0,42151.0,0.00042268]
[1644680844285,0.07135473,42154.0,42152.0,0.00592872]
[1644680844684,0.07135473,42154.0,42150.0,0.04807323]
[1644680844885,0.07135473,42154.0,42150.0,0.00037323]
[1644680845712,0.07135473,42154.0,42145.0,0.16954455]
[1644680845915,0.08347741,42146.0,42145.0,0.16954455]
[1644680848113,0.00090709,42147.0,42145.0,0.16954455]
[1644680848315,0.00090709,42147.0,42146.0,0.3322507]
[1644680848714,0.00090709,42147.0,42146.0,0.4322507]
[1644680851071,0.00097249,42148.0,42146.0,0.4322507]
[1644680851268,0.00097249,42148.0,42147.0,0.55018266]
[1644680851471,0.00097249,42148.0,42147.0,0.59788266]
[1644680852370,0.00097249,42148.0,42147.0,0.34844349]
[1644680852919,0.00097249,42148.0,42147.0,0.0477]
[1644680853112,2.49e-06,42148.0,42147.0,0.34287282]
[1644680853314,2.49e-06,42148.0,42147.0,0.49287282]
[1644680853513,2.49e-06,42148.0,42147.0,0.69450898]
[1644680853715,2.49e-06,42148.0,42147.0,0.49287282]
[1644680854312,0.06995129,42159.0,42152.0,0.24580021]
[1644680854514,0.06995129,42159.0,42153.0,0.0477]
[1644680854712,0.00023718,42161.0,42156.0,0.00592872]
[1644680854915,0.00023718,42161.0,42160.0,0.00592872]
[1644680855114,0.00023718,42161.0,42158.0,0.05362872]
[1644680855316,0.00027933,42169.0,42158.0,0.05362872]
[1644680855515,0.00027933,42169.0,42158.0,0.0477]
[1644680855516,0.00043784,42163.0,42158.0,0.0477]
[1644680855718,0.00043784,42163.0,42158.0,0.05362872]
[1644680856118,0.08112344,42161.0,42158.0,0.05362872]
[1644680856419,0.06612344,42161.0,42158.0,0.05362872]
[1644680858058,0.06612344,42161.0,42159.0,0.26081549]
[1644680858258,0.06612344,42161.0,42160.0,0.0477]
[1644680858461,0.30027933,42170.0,42160.0,0.0477]
[1644680858662,0.00027933,42171.0,42160.0,0.0477]
[1644680858860,0.24819259,42173.0,42168.0,0.00592872]
[1644680859062,0.24791326,42173.0,42168.0,0.00592872]
[1644680859259,0.24819259,42173.0,42168.0,0.00592872]
[1644680859460,0.07824777,42172.0,42168.0,0.00592872]
[1644680859660,0.0785271,42172.0,42168.0,0.00592872]
[1644680859859,0.0785271,42172.0,42165.0,0.0477]
[1644680860510,0.20344727,42166.0,42165.0,0.0477]
[1644680860713,0.35374855,42172.0,42167.0,0.3351038]
[1644680860715,0.00027933,42171.0,42167.0,0.3351038]
[1644680860911,0.35374855,42172.0,42167.0,0.3351038]
[1644680861110,0.00027933,42171.0,42167.0,0.3351038]
[1644680861427,0.0785271,42172.0,42167.0,0.3351038]
[1644680861613,0.19976101,42171.0,42167.0,0.3351038]
[1644680862814,0.2001849,42171.0,42167.0,0.3351038]
[1644680863216,0.00070322,42171.0,42167.0,0.3351038]
[1644680863616,0.00070322,42171.0,42167.0,0.34103252]
[1644680863820,0.0041,42174.0,42168.0,0.27803338]
[1644680863821,0.00027933,42173.0,42168.0,0.27803338]
[1644680864016,0.00040193,42171.0,42167.0,0.34103252]
[1644680864459,0.00040193,42171.0,42167.0,0.3351038]
[1644680864664,0.00040193,42171.0,42168.0,0.00592872]
[1644680864665,0.08321525,42170.0,42168.0,0.00592872]
[1644680865061,0.08321525,42170.0,42167.0,0.3351038]
[1644680865461,0.08321525,42170.0,42167.0,0.33603252]
[1644680866263,0.00119268,42170.0,42168.0,0.00237106]
[1644680867160,0.00119268,42170.0,42168.0,0.28682092]
[1644680867360,0.00119268,42170.0,42168.0,0.33452092]
[1644680867561,0.00119268,42170.0,42169.0,0.27467585]
[1644680868017,0.00119268,42170.0,42169.0,0.0977]
[1644680868219,0.00119268,42170.0,42169.0,0.53112511]
[1644680868420,0.00119268,42170.0,42169.0,0.3399447]
[1644680869516,0.00119268,42170.0,42169.0,0.2399447]
[1644680869718,0.00119268,42170.0,42169.0,0.3399447]
[1644680870318,0.00119268,42170.0,42169.0,0.62893634]
[1644680871120,0.00144718,42172.0,42169.0,0.62893634]
[1644680871321,0.00144718,42172.0,42171.0,0.21928642]
[1644680871521,0.00144718,42172.0,42171.0,0.31698642]
[1644680871768,0.00144718,42172.0,42171.0,0.71111805]
[1644680871975,0.00144718,42172.0,42171.0,0.49563243]
[1644680872170,0.00104251,42172.0,42171.0,0.49563243]
[1644680876112,0.00582982,42174.0,42171.0,0.49563243]
[1644680876313,0.00555049,42174.0,42171.0,0.49563243]
[1644680876915,0.00514576,42174.0,42171.0,0.19862872]
[1644680877315,0.00514576,42174.0,42171.0,0.09862872]
[1644680877714,0.00514576,42174.0,42171.0,0.37824499]
[1644680877913,0.00514576,42174.0,42171.0,0.47824499]
[1644680878513,0.00514576,42174.0,42171.0,0.56695499]
[1644680879163,0.00514576,42174.0,42171.0,0.75541041]
[1644680879365,0.00514576,42174.0,42173.0,0.05]
[1644680879564,0.00514576,42174.0,42173.0,0.0477]
[1644680880668,0.00514576,42174.0,42173.0,0.04741076]
[1644680882370,0.00514576,42174.0,42173.0,0.33299021]
[1644680882771,0.00514576,42174.0,42173.0,0.43299021]
[1644680883216,0.00514576,42174.0,42173.0,0.14741076]
[1644680883813,0.00514576,42174.0,42173.0,0.04741076]
[1644680885617,0.00514576,42174.0,42173.0,0.32748616]
[1644680885818,0.00514576,42174.0,42173.0,0.42748616]
[1644680890071,0.00514576,42174.0,42173.0,0.32748616]
[1644680890274,0.00514576,42174.0,42173.0,0.04741076]
[1644680890724,0.002,42177.0,42176.0,0.02072869]
[1644680891020,0.333248,42177.0,42176.0,0.02072869]
[1644680891219,0.680948,42177.0,42176.0,0.02072869]
[1644680891417,0.675948,42177.0,42176.0,0.02072869]
[1644680891815,0.80029066,42177.0,42176.0,0.02072869]
[1644680892016,0.59936194,42177.0,42176.0,2.869e-05]
[1644680892217,0.27111394,42177.0,42176.0,2.869e-05]
[1644680892416,0.60232294,42177.0,42176.0,2.869e-05]
[1644680892821,0.60232294,42177.0,42163.0,0.00016876]
[1644680892822,0.8,42175.0,42163.0,0.00016876]
[1644680893019,0.04907128,42166.0,42163.0,0.00016876]
[1644680893218,0.06298,42169.0,42163.0,0.00016876]
[1644680893219,0.08721015,42165.0,42163.0,0.00016876]
[1644680893721,0.08721015,42165.0,42152.0,0.086686]
[1644680893722,0.22598339,42164.0,42152.0,0.29244811]
[1644680893922,0.22678512,42157.0,42152.0,0.20669083]
[1644680894165,0.3,42164.0,42152.0,0.20669083]
[1644680894368,0.08721015,42165.0,42152.0,0.20669083]
[1644680894571,0.08721015,42165.0,42152.0,0.20576211]
[1644680895069,0.2936217,42164.0,42156.0,0.00040524]
[1644680895270,0.2152615,42161.0,42156.0,0.00040524]
[1644680895671,0.2936217,42164.0,42156.0,0.00040524]
[1644680896173,0.2936217,42164.0,42148.0,0.115]
[1644680896370,0.2936217,42164.0,42158.0,0.0004055]
[1644680896771,0.19180771,42160.0,42158.0,0.0004055]
[1644680897172,0.32499999,42164.0,42158.0,0.0004055]
[1644680897374,0.32499999,42164.0,42153.0,0.19899134]
[1644680897572,0.32499999,42164.0,42157.0,0.0004055]
[1644680897772,0.37499999,42164.0,42157.0,0.0004055]
[1644680898024,0.42499999,42164.0,42157.0,0.0004055]
[1644680898224,0.21298766,42159.0,42157.0,0.0004055]
[1644680898622,0.059329,42161.0,42147.0,0.28868841]
[1644680898823,0.059329,42161.0,42156.0,0.00040551]
[1644680899023,0.0816991,42157.0,42156.0,0.00040551]
[1644680899821,0.0816991,42157.0,42149.0,0.22301372]
[1644680900022,0.0816991,42157.0,42154.0,0.00040517]
[1644680901023,0.0816991,42157.0,42147.0,0.18868841]
[1644680901224,0.0816991,42157.0,42153.0,0.00040518]
[1644680901964,0.20057376,42159.0,42153.0,0.00040518]
[1644680902165,0.30326086,42162.0,42150.0,0.00092872]
[1644680902365,0.00092688,42163.0,42153.0,0.00040518]
[1644680903168,0.24411197,42162.0,42153.0,0.18767737]
[1644680903362,0.31394331,42162.0,42153.0,0.26136351]
[1644680903563,0.31394331,42162.0,42156.0,0.00040522]
[1644680903766,0.27558588,42161.0,42156.0,0.00040522]
[1644680904564,0.27558588,42161.0,42147.0,0.18961713]
[1644680904765,0.27558588,42161.0,42156.0,0.00040521]
[1644680905168,0.00092688,42163.0,42156.0,0.00040521]
[1644680905823,0.00092688,42163.0,42155.0,0.00092872]
[1644680906021,0.00092688,42163.0,42157.0,0.30244604]
[1644680906319,0.00092688,42163.0,42157.0,0.23120697]
[1644680907123,0.00092688,42163.0,42157.0,0.23080176]
[1644680907324,0.00092688,42163.0,42158.0,0.0004052]
[1644680908326,0.00092688,42163.0,42157.0,0.23080176]
[1644680908523,0.00092688,42163.0,42158.0,0.0004052]
[1644680909381,0.00092688,42163.0,42157.0,0.23080176]
[1644680909581,0.00092688,42163.0,42158.0,0.0004052]
[1644680910581,0.00092688,42163.0,42157.0,0.23080176]
[1644680910781,0.00092688,42163.0,42158.0,0.0004052]
[1644680911781,0.00092688,42163.0,42150.0,0.41281553]
[1644680911983,0.07092242,42155.0,42150.0,0.27432872]
[1644680912183,0.07092242,42155.0,42150.0,0.15092872]
[1644680912381,0.07092242,42155.0,42150.0,0.05092872]
[1644680912581,0.07092242,42155.0,42150.0,0.00092872]
[1644680913322,0.225572,42160.0,42150.0,0.00133395]
[1644680914322,0.00092688,42163.0,42150.0,0.00092872]
[1644680914521,0.00092688,42163.0,42153.0,0.00040552]
[1644680914723,0.0687047,42161.0,42153.0,0.00040552]
[1644680915523,0.0687047,42161.0,42150.0,0.00092872]
[1644680915723,0.0687047,42161.0,42155.0,0.00040552]
[1644680915924,0.34484495,42161.0,42155.0,0.00040552]
[1644680916766,0.34484495,42161.0,42150.0,0.00092872]
[1644680916967,0.34484495,42161.0,42156.0,0.00040551]
[1644680917167,0.0687047,42161.0,42156.0,0.00040551]
[1644680917668,0.0687047,42161.0,42156.0,0.00031464]
[1644680917866,0.0687047,42161.0,42150.0,0.00092872]
[1644680918067,0.0687047,42161.0,42156.0,0.00040516]
[1644680919065,0.0687047,42161.0,42150.0,0.00092872]
[1644680920615,0.0687047,42161.0,42149.0,0.48309469]
[1644680920814,0.2507043,42162.0,42161.0,0.13740939]
[1644680921615,0.31796059,42162.0,42161.0,0.13740939]
[1644680921815,0.06725629,42162.0,42161.0,0.13740939]
[1644680922916,0.27788712,42162.0,42161.0,0.13740939]
[1644680925969,0.27910653,42162.0,42161.0,0.13913915]
[1644680928018,0.61012156,42162.0,42161.0,0.13913915]
[1644680929022,0.27910653,42162.0,42161.0,0.13913915]
[1644680929622,0.5837664,42162.0,42161.0,0.13913915]
[1644680930621,0.059333,42160.0,42154.0,0.0004384]
[1644680930824,0.38028028,42159.0,42154.0,0.0004384]
[1644680931223,0.24907128,42159.0,42154.0,0.00043787]
[1644680931683,0.31872595,42155.0,42154.0,0.00043787]
[1644680931873,0.41872595,42155.0,42154.0,0.00043787]
[1644680932075,0.46872595,42155.0,42154.0,0.00043787]
[1644680932274,0.46872595,42155.0,42147.0,0.0002016]
[1644680932574,0.46872595,42155.0,42152.0,0.00043787]
[1644680932975,0.21390413,42155.0,42152.0,0.00043787]
[1644680933375,0.11390413,42155.0,42152.0,0.00043787]
[1644680933576,0.11390413,42155.0,42146.0,0.0002016]
[1644680933875,0.21560148,42154.0,42151.0,0.00043788]
[1644680934675,0.21560148,42154.0,42146.0,0.0002016]
[1644680934875,0.21560148,42154.0,42145.0,0.41097672]
[1644680934876,0.07875342,42148.0,42145.0,0.41097672]
[1644680935278,0.331209,42147.0,42145.0,0.16954455]
[1644680935539,0.431209,42147.0,42145.0,0.16954455]
[1644680936036,0.331209,42146.0,42145.0,0.16954455]
[1644680936236,0.54267446,42146.0,42145.0,0.16954455]
[1644680936436,0.31146546,42146.0,42145.0,0.16954455]
[1644680937339,0.21146546,42146.0,42145.0,0.16954455]
[1644680937537,0.31146546,42146.0,42145.0,0.16954455]
[1644680938739,0.21146546,42146.0,42145.0,0.16954455]
[1644680938942,0.31146546,42146.0,42145.0,0.16954455]
[1644680939768,0.21146546,42146.0,42145.0,0.16954455]
[1644680939969,0.31146546,42146.0,42145.0,0.16954455]
[1644680940270,0.63836835,42146.0,42145.0,0.16954455]
[1644680940471,0.31146546,42146.0,42145.0,0.16954455]
[1644680941071,0.21387133,42146.0,42145.0,0.16954455]
[1644680941271,0.059358,42143.0,42134.0,0.0002016]
[1644680941471,0.059358,42143.0,42133.0,0.18868841]
[1644680941472,0.26468876,42134.0,42133.0,0.18868841]
[1644680941673,0.26468876,42134.0,42132.0,0.3903]
[1644680941674,0.26468876,42134.0,42132.0,0.0302016]
[1644680941871,0.26468876,42134.0,42132.0,0.03]
[1644680942773,0.32980116,42134.0,42132.0,0.03]
[1644680943521,0.26468876,42134.0,42132.0,0.03]
[1644680944624,0.118715,42143.0,42132.0,0.03]
[1644680944822,0.1219,42144.0,42133.0,0.07597013]
[1644680945022,0.05240587,42146.0,42133.0,0.07597013]
[1644680945023,0.00240587,42146.0,42134.0,0.30002259]
[1644680945224,0.00240587,42146.0,42145.0,0.00092872]
[1644680946024,0.08669058,42151.0,42144.0,0.0002016]
[1644680946323,0.08669058,42151.0,42146.0,0.00240587]
[1644680946524,0.01669058,42151.0,42146.0,0.00240587]
[1644680947071,0.01669058,42151.0,42146.0,0.00284125]
[1644680947971,0.01669058,42151.0,42146.0,0.00240587]
[1644680948172,0.23884153,42154.0,42146.0,0.00284125]
[1644680948572,0.5905,42157.0,42146.0,0.00284125]
[1644680948773,0.3817,42160.0,42146.0,0.30688213]
[1644680948774,0.4317,42160.0,42146.0,0.30688213]
[1644680948976,0.3817,42160.0,42153.0,0.00092872]
[1644680949175,0.6715,42166.0,42150.0,0.00092872]
[1644680949373,0.07516439,42158.0,42151.0,0.08227319]
[1644680950434,0.07516439,42158.0,42151.0,0.08276655]
[1644680950622,0.07516439,42158.0,42154.0,0.00092872]
[1644680950824,0.830825,42166.0,42154.0,0.00092872]
[1644680951023,0.6715,42166.0,42154.0,0.00092872]
[1644680951424,0.6715,42166.0,42156.0,0.00092872]
[1644680951624,0.6715,42166.0,42155.0,0.25929895]
[1644680951824,0.67134823,42166.0,42159.0,0.00092872]
[1644680952027,0.08016368,42166.0,42159.0,0.08976055]
[1644680952626,0.08016368,42166.0,42159.0,0.00092872]
[1644680953025,0.08016368,42166.0,42158.0,0.00092872]
[1644680953428,0.1175794,42172.0,42158.0,0.00092872]
[1644680953728,0.05,42171.0,42158.0,0.00092872]
[1644680954369,0.24291379,42169.0,42158.0,0.00092872]
[1644680954569,0.06393773,42167.0,42160.0,0.08920046]
[1644680956370,0.06393773,42167.0,42158.0,0.00092872]
[1644680956970,0.06393773,42167.0,42162.0,0.00092872]
[1644680957774,0.06393773,42167.0,42157.0,0.23726694]
[1644680958821,0.20581638,42161.0,42157.0,0.23726694]
[1644680959021,0.61555177,42172.0,42161.0,0.33279436]
[1644680959022,0.26780205,42164.0,42161.0,0.33279436]
[1644680960323,0.06512136,42163.0,42161.0,0.33279436]
[1644680962376,0.26780205,42164.0,42161.0,0.33279436]
[1644680964175,0.059321,42168.0,42161.0,0.33279436]
[1644680964376,0.45273797,42170.0,42164.0,0.08137013]
[1644680964377,0.50273797,42170.0,42164.0,0.08137013]
[1644680964579,0.45273797,42170.0,42164.0,0.08137013]
[1644680964978,0.35273797,42170.0,42161.0,0.33279436]
[1644680965178,0.059323,42169.0,42161.0,0.33279436]
[1644680966025,0.24017389,42164.0,42161.0,0.33279436]
[1644680966221,0.06526491,42163.0,42161.0,0.33279436]
[1644680966421,0.24017389,42164.0,42161.0,0.33279436]
[1644680967625,0.059317,42171.0,42163.0,0.00092872]
[1644680967827,0.0002794,42172.0,42163.0,0.00092872]
[1644680968032,0.0002794,42172.0,42163.0,0.28629941]
[1644680968229,0.0006798,42174.0,42163.0,0.28629941]
[1644680968429,0.0002794,42173.0,42163.0,0.00092872]
[1644680968628,0.5963,42175.0,42163.0,0.06683487]
[1644680968629,0.25207429,42168.0,42163.0,0.06683487]
[1644680968829,0.25207429,42168.0,42163.0,0.00092872]
[1644680969474,0.25207429,42168.0,42161.0,0.33372308]
[1644680969674,0.25207429,42168.0,42161.0,0.33279436]
[1644680970074,0.25207429,42168.0,42161.0,0.33372308]
[1644680970276,0.06746641,42163.0,42161.0,0.33279436]
[1644680971376,0.25207429,42168.0,42161.0,0.33279436]
[1644680972579,0.35207429,42168.0,42161.0,0.33279436]
[1644680972778,0.45207429,42168.0,42161.0,0.33279436]
[1644680973232,0.35207429,42168.0,42161.0,0.33279436]
[1644680973429,0.059323,42167.0,42161.0,0.33279436]
[1644680973829,0.05,42167.0,42161.0,0.33279436]
[1644680974327,0.07671527,42166.0,42161.0,0.33279436]
[1644680976229,0.07671527,42166.0,42163.0,0.00136721]
[1644680981127,0.0002794,42173.0,42164.0,0.25621673]
[1644680981324,0.11884126,42174.0,42168.0,0.00092872]
[1644680981325,0.00021226,42174.0,42168.0,0.00092872]
[1644680981524,0.0002794,42173.0,42169.0,0.0477]
[1644680981723,0.0002794,42175.0,42169.0,0.0477]
[1644680981923,0.0002794,42173.0,42169.0,0.0477]
[1644680982125,0.00022168,42174.0,42169.0,0.0477]
[1644680982324,0.0002794,42173.0,42170.0,0.00092872]
[1644680982525,0.00022168,42174.0,42170.0,0.00092872]
[1644680982924,0.0002794,42175.0,42170.0,0.00092872]
[1644680983222,0.00041866,42174.0,42170.0,0.00092872]
[1644680984171,0.0002794,42175.0,42170.0,0.00092872]
[1644680984377,0.00041866,42174.0,42170.0,0.00092872]
[1644680985374,0.0002794,42175.0,42170.0,0.00092872]
[1644680985672,0.00039779,42174.0,42170.0,0.00092872]
[1644680986673,0.0002794,42175.0,42170.0,0.00092872]
[1644680986874,0.00039779,42174.0,42170.0,0.00082994]
[1644680987676,0.0002794,42175.0,42170.0,0.00082994]
[1644680987925,0.08032975,42176.0,42170.0,0.00082994]
[1644680987926,0.00039779,42174.0,42170.0,0.00082994]
[1644680988925,0.0002794,42175.0,42170.0,0.00082994]
[1644680989123,0.08060915,42176.0,42170.0,0.00082994]
[1644680989322,0.00039733,42174.0,42170.0,0.00082994]
[1644680989724,0.00067673,42174.0,42167.0,0.00082994]
[1644680989924,0.00039733,42174.0,42167.0,0.00082994]
[1644680990125,0.07600648,42176.0,42167.0,0.00082994]
[1644680990526,0.00039733,42174.0,42167.0,0.00082994]
[1644680991125,0.25354343,42170.0,42167.0,0.00082994]
[1644680991327,0.20639406,42173.0,42170.0,0.28494245]
[1644680994577,0.25639406,42173.0,42170.0,0.28494245]
[1644680994776,0.20639406,42173.0,42170.0,0.28494245]
[1644680995176,0.17639406,42173.0,42170.0,0.28494245]
[1644680998026,0.22639406,42173.0,42170.0,0.28494245]
[1644680999983,0.17639406,42173.0,42170.0,0.28494245]
[1644681001684,0.17639406,42173.0,42170.0,9.28494245]
[1644681001886,0.331209,42172.0,42170.0,9.28494245]
[1644681004437,0.481209,42172.0,42170.0,9.28494245]
[1644681006036,0.481209,42172.0,42170.0,9.28650679]
[1644681006978,0.331209,42172.0,42170.0,9.28650679]